fUST/lending_fUST_20240709
["ID","MTS","AMOUNT","RATE_DAILY","PERIOD"]
[331544824,1720476643854,-156.744755,0.00033333,7]
[331544825,1720476643863,-156.744755,0.00033333,7]
[331544826,1720476643873,-1736.827804,0.00033333,7]
[331544827,1720476643882,-1736.827804,0.00033333,7]
[331544828,1720476643891,-151.0,0.00033333,7]
[331544829,1720476643900,-151.0,0.00033333,7]
[331544830,1720476643909,-151.0,0.00033333,7]
[331544831,1720476643919,-88722.45802687,0.00033333,2]
[331544832,1720476643927,-360.5186476,0.0003337,2]
[331544833,1720476643936,-153.8013533,0.00033589,2]
[331544834,1720476643945,-306.0,0.00033808,2]
[331544835,1720476643954,-151.07444044,0.00033876,2]
[331544837,1720476643964,-1405.0,0.00034302,2]
[331544839,1720476643974,-248.114,0.00034497,2]
[331544840,1720476643982,-151.74,0.00034497,2]
[331544842,1720476643991,-1400.66110851,0.00034562,4]
[331544844,1720476644001,-1400.66110851,0.00034562,4]
[331544847,1720476644010,-211.56,0.000347,2]
[331544849,1720476644019,-235.629,0.000347,2]
[331544850,1720476644028,-241.754,0.000347,2]
[331544852,1720476644037,-150.811,0.000347,2]
[331544853,1720476644049,-150.0,0.000347,2]
[331544855,1720476644058,-1282.14728249,0.00034728,12]
[331544857,1720476644067,-1000.0,0.000348,3]
[331544859,1720476644076,-26461.57079407,0.000349,2]
[331544881,1720476644281,-662.1748885,0.00029813,2]
[331544883,1720476644290,-154.66746495,0.00029823,2]
[331544885,1720476644303,-154.66746495,0.00029879,2]
[331544887,1720476644312,-921.92554847,0.000349,2]
[331544889,1720476644322,-930.9662219,0.00035,4]
[331544891,1720476644333,-731.0474571,0.00035,4]
[331544893,1720476644343,-8441.11942699,0.00035,2]
[331544895,1720476644351,-1411.68404694,0.00035,30]
[331544897,1720476644360,-270.54081462,0.00035,2]
[331544899,1720476644370,-212.0,0.00036,2]
[331544901,1720476644379,-212.0,0.00036,2]
[331544903,1720476644388,-212.0,0.00036,2]
[331544905,1720476644397,-257.7502026,0.0003624,2]
[331544907,1720476644407,-153.0,0.00036414,2]
[331544909,1720476644416,-844.4355982,0.00037,2]
[331544911,1720476644426,-1405.0,0.00037302,2]
[331544912,1720476644435,-153.0,0.00037333,2]
[331544914,1720476644444,-150.0,0.00037497,2]
[331544915,1720476644453,-505.0,0.000375,2]
[331544916,1720476644462,-161.577342,0.00037697,2]
[331544917,1720476644471,-150.0,0.000377,2]
[331544918,1720476644480,-150.0,0.000377,2]
[331544919,1720476644490,-150.0,0.000377,2]
[331544920,1720476644499,-583.55354263,0.00038,10]
[331544921,1720476644508,-2536.04865389,0.00038369,2]
[331544922,1720476644553,-671.77936835,0.00038369,2]
[331544923,1720476644564,-896.0199674,0.00038369,2]
[331544924,1720476644575,-8379.01841372,0.00038369,2]
[331544925,1720476644585,-352.456612,0.00038369,14]
[331544926,1720476644594,-352.456619,0.00038369,14]
[331544927,1720476644603,-268.723027,0.00038369,14]
[331544928,1720476644612,-268.723027,0.00038369,14]
[331544929,1720476644621,-596.662573,0.00038369,2]
[331544930,1720476644630,-596.662576,0.00038369,2]
[331544931,1720476644639,-156.744755,0.00038369,14]
[331544932,1720476644649,-156.744755,0.00038369,14]
[331544933,1720476644658,-1736.827804,0.00038369,14]
[331544934,1720476644667,-1736.827804,0.00038369,14]
[331544935,1720476644675,-151.0,0.00038369,14]
[331544936,1720476644684,-151.0,0.00038369,14]
[331544937,1720476644693,-226.51638059,0.00038369,14]
[331544938,1720476644703,-268.723027,0.00038497,14]
[331544939,1720476644712,-268.723035,0.00038497,14]
[331544940,1720476644721,-5141.6148537,0.00038518,5]
[331544941,1720476644730,-72900.75007839,0.00038518,14]
[331544942,1720476644882,-154.66746495,0.00029793,2]
[331544943,1720476644892,-532.24050528,0.00029813,2]
[331544944,1720476644902,-412.72535761,0.00029904,2]
[331544945,1720476644911,-3728.43616344,0.00038518,14]
[331544976,1720476646978,-492.59913672,0.00016255,2]
[331544978,1720476646988,-195.84578996,0.00029803,2]
[331544981,1720476646998,-179.90875741,0.00029813,2]
[331544983,1720476647007,-555.03631591,0.00033323,3]
[331544985,1720476828306,6495.39121456,0.00014998,2]
[331544987,1720476886284,213.03490535,0.00014998,2]
[331544989,1720476935416,241.01267009,0.00014998,2]
[331544990,1720476936218,155.28009208,0.00014998,2]
[331544991,1720476943503,3442.53375851,0.00014998,2]
[331544992,1720476965736,662.1748885,0.00014999,2]
[331544993,1720476969174,777.0985601,0.00014999,2]
[331544994,1720476974361,154.83742071,0.00014999,2]
[331544995,1720476982024,725.25724813,0.00014999,2]
[331544996,1720476985322,155.14377165,0.00014999,2]
[331544997,1720476988285,566.82686133,0.00014999,2]
[331544998,1720476992832,213.03490535,0.00014998,2]
[331544999,1720476992896,777.37650833,0.00014999,2]
[331545000,1720476995437,220.46741534,0.00014999,2]
[331545001,1720476997073,155.14597482,0.00014998,2]
[331545003,1720477002046,908.81436662,0.00014999,2]
[331545004,1720477006979,517.95798535,0.00014999,2]
[331545005,1720477007797,608.47272589,0.00014998,2]
[331545006,1720477015865,368.51184958,0.00014999,2]
[331545007,1720477018942,194.6202431,0.00014999,2]
[331545008,1720477026058,492.59913672,0.00014999,2]
[331545009,1720477044996,844.3449217,0.00014999,2]
[331545010,1720477046418,181.75072073,0.00014999,2]
[331545011,1720477050126,221.51902791,0.00014999,2]
[331545012,1720477050911,203.23522038,0.00014999,2]
[331545013,1720477050950,885.64307745,0.00014999,2]
[331545014,1720477059636,154.66746495,0.00014999,2]
[331545015,1720477062472,155.02908324,0.00014999,2]
[331545016,1720477068647,304.47632506,0.00014999,2]
[331545017,1720477070848,523.84731011,0.00014999,2]
[331545018,1720477071739,318.7185046,0.00014999,2]
[331545019,1720477075517,155.55731267,0.00014999,2]
[331545020,1720477076709,458.54129141,0.00014999,2]
[331545021,1720477077839,403.49755909,0.00014999,2]
[331545022,1720477079293,164.70099388,0.00014999,2]
[331545023,1720477079497,412.552406,0.00014999,2]
[331545024,1720477079719,155.30166176,0.00014999,2]
[331545025,1720477080280,213.03490535,0.00014999,2]
[331545026,1720477081543,179.90875741,0.00014999,2]
[331545027,1720477083071,155.28019275,0.00014999,2]
[331545028,1720477083934,154.66746495,0.00014999,2]
[331545029,1720477084989,402.47381774,0.00014999,2]
[331545030,1720477087145,272.31604282,0.00014999,2]
[331545031,1720477093025,374.75657396,0.00014999,2]
[331545032,1720477095363,213.03490535,0.00014999,2]
[331545033,1720477096071,158.89526759,0.00014999,2]
[331545034,1720477096980,286.90128516,0.00014999,2]
[331545035,1720477102082,-492.47140658,0.00015995,2]
[331545036,1720477102104,-300.0,0.00016254,2]
[331545037,1720477102126,-300.0,0.00016254,2]
[331545038,1720477102147,-195.84578996,0.00016255,2]
[331545039,1720477102169,-154.66746495,0.00016255,2]
[331545040,1720477102189,-598.9386122,0.00016255,2]
[331545041,1720477102210,-154.66746495,0.00016255,2]
[331545042,1720477102232,-154.66746495,0.00016255,2]
[331545043,1720477102253,-156.80969809,0.00016255,2]
[331545044,1720477102274,-154.66746495,0.00016255,2]
[331545045,1720477102295,-154.66746495,0.00016255,2]
[331545046,1720477102402,-154.66746495,0.00016255,2]
[331545047,1720477102426,-171.5819163,0.00016255,2]
[331545048,1720477102448,-154.66746495,0.00016255,2]
[331545049,1720477102468,-154.66746495,0.00016255,2]
[331545050,1720477102489,-203.18290702,0.00016255,2]
[331545051,1720477102509,-804.69654268,0.00016255,2]
[331545052,1720477102530,-154.66746495,0.00016255,2]
[331545053,1720477102552,-725.25724813,0.00016255,2]
[331545054,1720477102573,-908.81436662,0.00016255,2]
[331545055,1720477102595,-207.45524428,0.00016255,2]
[331545056,1720477102616,-517.95798535,0.00016255,2]
[331545057,1720477106991,203.18290702,0.00016255,2]
[331545058,1720477107828,403.49755909,0.00014999,2]
[331545059,1720477108592,154.66746495,0.00014999,2]
[331545060,1720477109479,283.34784501,0.00016255,2]
[331545061,1720477110129,598.9386122,0.00014999,2]
[331545062,1720477110524,374.75657396,0.00014999,2]
[331545063,1720477112629,195.84578996,0.00014999,2]
[331545064,1720477175546,725.25724813,0.00014999,2]
[331545065,1720477181725,154.66746495,0.00014999,2]
[331545066,1720477182449,154.66746495,0.00014999,2]
[331545067,1720477183171,492.59913672,0.00014999,2]
[331545068,1720477183941,506.50237633,0.00014999,2]
[331545069,1720477187150,-844.3449217,0.00016255,2]
[331545070,1720477187173,-885.64307745,0.00016255,2]
[331545071,1720477187196,-402.47381774,0.00016255,2]
[331545072,1720477187221,-318.7185046,0.00016255,2]
[331545073,1720477187246,-885.64307745,0.00016255,2]
[331545074,1720477187268,-166.27556017,0.00016255,2]
[331545075,1720477187291,-285.85499685,0.00016255,2]
[331545076,1720477187312,-523.52182497,0.00016255,2]
[331545077,1720477187334,-154.66746495,0.00016255,2]
[331545078,1720477187356,-250.52226549,0.00016255,2]
[331545079,1720477187377,-440.02093987,0.00016255,2]
[331545080,1720477191075,844.3449217,0.00014999,2]
[331545081,1720477193372,154.66746495,0.00014999,2]
[331545082,1720477196082,154.66746495,0.00016255,2]
[331545083,1720477197363,155.17733223,0.00016255,2]
[331545084,1720477197979,180.47511279,0.00016255,2]
[331545085,1720477199218,154.66746495,0.00016255,2]
[331545086,1720477203302,213.03490535,0.00014999,2]
[331545087,1720477248053,908.81436662,0.00014999,2]
[331545088,1720477254196,179.90875741,0.00014999,2]
[331545089,1720477255449,403.49755909,0.00014999,2]
[331545090,1720477265802,154.66746495,0.00014999,2]
[331545091,1720477270137,195.42089261,0.00014999,2]
[331545092,1720477274834,558.41529045,0.0002,30]
[331545093,1720477277495,283.34784501,0.00014999,2]
[331545094,1720477277556,374.40512747,0.00014999,2]
[331545095,1720477279980,203.18290702,0.00014999,2]
[331545096,1720477308547,775.26177488,0.00014999,2]
[331545097,1720477309973,203.18290702,0.00014999,2]
[331545098,1720477311000,154.66746495,0.00014999,2]
[331545099,1720477313359,213.03490535,0.00014999,2]
[331545100,1720477323100,209.96844151,0.00014999,2]
[331545101,1720477326529,372.32868379,0.00014999,2]
[331545102,1720477328639,1105.45150955,0.00015,2]
[331545103,1720477331240,2567.62515585,0.00014999,2]
[331545104,1720477332727,217.21431185,0.00014999,2]
[331545105,1720477337448,245.34347178,0.00014999,2]
[331545106,1720477337729,154.66746495,0.00014999,2]
[331545107,1720477340329,259.22093743,0.00014999,2]
[331545108,1720477347136,949.52863578,0.00015,2]
[331545109,1720477355784,2526.7793836,0.00014999,4]
[331545110,1720477367180,303.7322821,0.00014999,2]
[331545111,1720477368746,300.47362274,0.00014999,2]
[331545112,1720477369783,193.18071048,0.00014999,2]
[331545113,1720477371659,184.02069573,0.00014999,2]
[331545114,1720477372782,529.99371104,0.00014999,2]
[331545115,1720477378992,252.0304944,0.00014999,2]
[331545116,1720477381079,179.69195669,0.00014999,2]
[331545117,1720477383678,164.6933575,0.00014999,2]
[331545118,1720477384505,176.74654804,0.00014999,2]
[331545119,1720477387308,566.82686133,0.00014999,2]
[331545120,1720477389356,403.49755909,0.00014999,2]
[331545121,1720477391003,283.34784501,0.00014999,2]
[331545122,1720477394305,2420.55776569,0.00015,2]
[331545123,1720477395172,160.0,0.00014999,2]
[331545124,1720477395599,154.69833824,0.00014999,2]
[331545125,1720477400270,908.81436662,0.00014999,2]
[331545126,1720477417593,154.69833824,0.00014999,2]
[331545127,1720477422690,182.96576106,0.00014999,2]
[331545128,1720477427993,517.95798535,0.00014999,2]
[331545129,1720477428295,213.03490535,0.00015,2]
[331545130,1720477432243,209.25803846,0.00014999,2]
[331545131,1720477442998,154.66746495,0.00014999,2]
[331545132,1720477461633,1014.71473126,0.00015,2]
[331545133,1720477462023,885.64307745,0.00014999,2]
[331545134,1720477502809,529.99371104,0.00014999,2]
[331545135,1720477517080,507.42714469,0.00015,2]
[331545136,1720477529235,154.66746495,0.00014999,2]
[331545137,1720477532610,396.29907518,0.00014999,2]
[331545138,1720477535158,908.81436662,0.00014999,2]
[331545139,1720477548302,213.03490535,0.00014999,2]
[331545140,1720477548437,538.14889539,0.00014999,2]
[331545141,1720477572048,374.63942513,0.00014999,2]
[331545142,1720477591004,196.28078495,0.00014999,2]
[331545143,1720477613975,512.0102926,0.00014999,2]
[331545144,1720477616341,6982.93549325,0.00014998,2]
[331545145,1720477638454,213.03490535,0.00014999,2]
[331545146,1720477659790,529.99371104,0.00014999,2]
[331545147,1720477699276,157.09446949,0.00014999,2]
[331545148,1720477724321,213.03490535,0.00014999,2]
[331545150,1720477762078,404.14700933,0.00014999,2]
[331545151,1720477764662,3137.77932824,0.00014999,2]
[331545153,1720477801250,-982.23271157,0.00016118,2]
[331545154,1720477801288,-284.27372803,0.00016118,2]
[331545155,1720477801320,-697.95898354,0.00016225,2]
[331545156,1720477801363,-496.76997519,0.00016225,2]
[331545157,1720477803812,529.99371104,0.00014999,2]
[331545190,1720477832777,885.64307745,0.00014999,2]
[331545192,1720477833022,-300.0,0.00016224,2]
[331545193,1720477833031,-417.38569708,0.00016225,2]
[331545194,1720477834204,7381.59678031,0.00014998,2]
[331545235,1720477835440,213.03490535,0.00014999,2]
[331545536,1720477838725,-7087.42996009,0.00016225,2]
[331545538,1720477838735,-17255.76571528,0.00016255,2]
[331545540,1720477838744,-1986.97335839,0.00016255,2]
[331545542,1720477838753,-166.666666,0.00016438,2]
[331545544,1720477838763,-250.0,0.00016712,2]
[331545546,1720477838772,-166.666666,0.0001683,2]
[331545549,1720477838782,-166.666666,0.00017221,2]
[331545551,1720477838791,-166.666666,0.00017612,2]
[331545553,1720477838800,-204.08145463,0.00017733,2]
[331545555,1720477838810,-24900.0,0.00017734,2]
[331545557,1720477838819,-371.05109483,0.00017747,2]
[331545559,1720477838828,-420.0,0.00017847,2]
[331545561,1720477838838,-166.666666,0.00018003,2]
[331545563,1720477838847,-221.67891403,0.00018179,2]
[331545565,1720477838857,-525.93863422,0.00018179,2]
[331545567,1720477838867,-525.93863422,0.00018179,2]
[331545569,1720477838876,-188.6921942,0.0001818,2]
[331545571,1720477838886,-777.37650833,0.0001818,2]
[331545573,1720477838896,-157.2682199,0.0001818,2]
[331545575,1720477838906,-525.39824529,0.0001818,2]
[331545577,1720477838915,-6417.73232032,0.0001818,2]
[331545579,1720477838925,-166.666666,0.00018394,2]
[331545581,1720477838934,-208.71612873,0.00018899,2]
[331545590,1720477839012,-208.71612873,0.00018899,2]
[331545592,1720477839023,-209.22009832,0.00018899,2]
[331545594,1720477839033,-775.31299073,0.000189,2]
[331545596,1720477839043,-812.92138686,0.00019,3]
[331545598,1720477839052,-197.26562919,0.00019039,2]
[331545600,1720477839062,-250.0,0.00019041,2]
[331545602,1720477839072,-934.8017749,0.00019164,2]
[331545604,1720477839083,-182.6876855,0.00019165,2]
[331545606,1720477839093,-164.768494,0.00019178,2]
[331545608,1720477839104,-161.577342,0.00019178,2]
[331545610,1720477839113,-587.0,0.00019631,2]
[331545612,1720477839123,-605.52412605,0.0002,2]
[331545614,1720477839133,-169.60808381,0.0002,2]
[331545616,1720477839143,-435.0,0.0002,2]
[331545618,1720477839156,-151.19763648,0.0002,2]
[331545620,1720477839165,-373.7955816,0.0002,2]
[331545622,1720477839175,-241.98105013,0.00020675,2]
[331545624,1720477839187,-750.0,0.00021096,2]
[331545626,1720477839196,-161.834866,0.00021096,2]
[331545628,1720477839206,-620.00377191,0.00021263,2]
[331545630,1720477839216,-371.05109482,0.00021524,2]
[331545632,1720477839226,-216.0,0.00021595,2]
[331545634,1720477839237,-1065.44743963,0.00021917,2]
[331545636,1720477839247,-154.76784823,0.00021917,2]
[331545638,1720477839256,-155.377278,0.00021917,2]
[331545640,1720477839265,-879.88946066,0.0002217,2]
[331545642,1720477839275,-620.0001886,0.00022326,2]
[331545644,1720477839285,-150.0,0.00022338,2]
[331545646,1720477839294,-18940.1170328,0.00022478,3]
[331545648,1720477839306,-1106.09923176,0.00022867,2]
[331545650,1720477839317,-250.0,0.00022886,2]
[331545652,1720477839327,-11111.35069313,0.00022907,2]
[331545654,1720477839338,-200.0,0.00023,2]
[331545656,1720477839349,-350.0,0.00023434,2]
[331545658,1720477839359,-620.00000943,0.00023442,2]
[331545660,1720477839369,-160.03609292,0.00023455,2]
[331545662,1720477839381,-775.31299073,0.000239,2]
[331545664,1720477839392,-154.66746495,0.00023968,2]
[331545666,1720477839402,-450.0,0.00023982,2]
[331545668,1720477839412,-550.0,0.0002453,2]
[331545670,1720477839422,-189.17055998,0.00025,2]
[331545672,1720477839432,-154.69833824,0.00025,2]
[331545674,1720477839442,-190.62597405,0.00025,2]
[331545676,1720477839453,-78441.19957992,0.00025,2]
[331545678,1720477839463,-650.0,0.00025078,2]
[331545680,1720477839473,-2000.0,0.00025104,2]
[331545682,1720477839484,-358.36090316,0.00025193,2]
[331545684,1720477839494,-223.28057959,0.00025193,2]
[331545686,1720477839504,-500.0,0.00025193,2]
[331545688,1720477839514,-482.36154899,0.00025193,2]
[331545690,1720477839524,-338.78237655,0.00025193,2]
[331545692,1720477839533,-500.0,0.00025193,2]
[331545694,1720477839543,-500.0,0.00025193,2]
[331545696,1720477839553,-500.0,0.00025193,2]
[331545698,1720477839563,-158.19303311,0.00025193,2]
[331545700,1720477839573,-500.0,0.00025193,2]
[331545701,1720477839583,-500.0,0.00025193,2]
[331545703,1720477839592,-379.43345372,0.00025193,2]
[331545705,1720477839602,-500.0,0.00025193,2]
[331545707,1720477839612,-500.0,0.00025193,2]
[331545710,1720477839622,-340.38253674,0.00025193,2]
[331545711,1720477839633,-500.0,0.00025193,2]
[331545713,1720477839643,-500.0,0.00025193,2]
[331545715,1720477839653,-500.0,0.00025193,2]
[331545717,1720477839663,-500.0,0.00025193,2]
[331545718,1720477839673,-500.0,0.00025193,2]
[331545719,1720477839684,-500.0,0.00025193,2]
[331545720,1720477839694,-37880.2340657,0.00025194,3]
[331545721,1720477839704,-52127.6117321,0.00025204,2]
[331545722,1720477839715,-371.05109482,0.000253,2]
[331545723,1720477839724,-1891.19319212,0.000254,2]
[331545724,1720477839735,-750.0,0.00025626,2]
[331545725,1720477839745,-850.0,0.00026174,2]
[331545726,1720477839755,-950.0,0.00026722,2]
[331545727,1720477839765,-18940.1170328,0.00026738,3]
[331545728,1720477839777,-1106.09923172,0.00026748,2]
[331545729,1720477839787,-163.9178479,0.00027123,2]
[331545730,1720477839797,-30000.0,0.00027184,2]
[331545731,1720477839807,-750.0,0.00027195,2]
[331545732,1720477839817,-1000.30001953,0.0002727,2]
[331545733,1720477839827,-18940.1170328,0.00027387,3]
[331545734,1720477839837,-500.0,0.00027397,2]
[331545735,1720477839847,-500.0,0.00027397,2]
[331545736,1720477839858,-500.0,0.00027397,2]
[331545737,1720477839868,-500.0,0.00027397,2]
[331545738,1720477839878,-500.0,0.00027397,2]
[331545739,1720477839889,-500.0,0.00027397,2]
[331545740,1720477839899,-500.0,0.00027397,2]
[331545741,1720477839909,-192.24749268,0.00027397,2]
[331545743,1720477839920,-500.0,0.00027397,2]
[331545745,1720477839930,-500.0,0.00027397,2]
[331545747,1720477839941,-500.0,0.00027397,2]
[331545749,1720477839950,-500.0,0.00027397,2]
[331545751,1720477839960,-500.0,0.00027397,2]
[331545753,1720477839970,-500.0,0.00027397,2]
[331545755,1720477839980,-500.0,0.00027397,2]
[331545757,1720477839989,-500.0,0.00027397,2]
[331545764,1720477840061,-500.0,0.00027397,2]
[331545766,1720477840072,-500.0,0.00027397,2]
[331545768,1720477840082,-500.0,0.00027397,2]
[331545770,1720477840092,-500.0,0.00027397,2]
[331545772,1720477840101,-500.0,0.00027397,2]
[331545774,1720477840112,-500.0,0.00027397,2]
[331545776,1720477840121,-500.0,0.00027397,2]
[331545778,1720477840134,-500.0,0.00027397,2]
[331545780,1720477840144,-500.0,0.00027397,2]
[331545782,1720477840158,-500.0,0.00027397,2]
[331545784,1720477840168,-500.0,0.00027397,2]
[331545786,1720477840178,-500.0,0.00027397,2]
[331545788,1720477840190,-500.0,0.00027397,2]
[331545791,1720477840201,-500.0,0.00027397,2]
[331545792,1720477840211,-500.0,0.00027397,2]
[331545794,1720477840222,-500.0,0.00027397,2]
[331545796,1720477840232,-500.0,0.00027397,2]
[331545798,1720477840243,-550.0,0.00027397,2]
[331545799,1720477840253,-500.0,0.00027397,2]
[331545801,1720477840263,-500.0,0.00027397,2]
[331545803,1720477840275,-500.0,0.00027397,2]
[331545806,1720477840285,-500.0,0.00027397,2]
[331545807,1720477840295,-500.0,0.00027397,2]
[331545809,1720477840306,-500.0,0.00027397,2]
[331545811,1720477840317,-500.0,0.00027397,2]
[331545813,1720477840327,-500.0,0.00027397,2]
[331545815,1720477840337,-500.0,0.00027397,2]
[331545817,1720477840347,-500.0,0.00027397,2]
[331545819,1720477840357,-500.0,0.00027397,2]
[331545821,1720477840367,-500.0,0.00027397,2]
[331545822,1720477840377,-500.0,0.00027397,2]
[331545823,1720477840388,-500.0,0.00027397,2]
[331545824,1720477840398,-500.0,0.00027397,2]
[331545825,1720477840408,-500.0,0.00027397,2]
[331545826,1720477840418,-500.0,0.00027397,2]
[331545827,1720477840429,-500.0,0.00027397,2]
[331545828,1720477840439,-500.0,0.00027397,2]
[331545829,1720477840449,-500.0,0.00027397,2]
[331545830,1720477840461,-500.0,0.00027397,2]
[331545831,1720477840471,-500.0,0.00027397,2]
[331545832,1720477840482,-500.0,0.00027397,2]
[331545833,1720477840492,-500.0,0.00027397,2]
[331545834,1720477840503,-500.0,0.00027397,2]
[331545835,1720477840513,-500.0,0.00027397,2]
[331545836,1720477840524,-500.0,0.00027397,2]
[331545837,1720477840537,-500.0,0.00027397,2]
[331545838,1720477840547,-500.0,0.00027397,2]
[331545839,1720477840558,-500.0,0.00027397,2]
[331545840,1720477840568,-500.0,0.00027397,2]
[331545841,1720477840578,-1095.63513171,0.00027397,2]
[331545842,1720477840588,-1095.63513171,0.00027397,2]
[331545843,1720477840599,-1095.63513171,0.00027397,2]
[331545844,1720477840609,-1095.63513171,0.00027397,2]
[331545845,1720477840619,-1095.63513171,0.00027397,2]
[331545846,1720477840629,-1095.63513171,0.00027397,2]
[331545847,1720477840639,-1095.63513171,0.00027397,2]
[331545848,1720477840649,-1095.63513171,0.00027397,2]
[331545849,1720477840659,-1095.63513171,0.00027397,2]
[331545850,1720477840670,-1095.63513171,0.00027397,2]
[331545851,1720477840680,-1095.63513171,0.00027397,2]
[331545852,1720477840690,-1095.63513171,0.00027397,2]
[331545853,1720477840700,-1095.63513171,0.00027397,2]
[331545854,1720477840710,-1095.63513171,0.00027397,2]
[331545855,1720477840720,-1095.63513171,0.00027397,2]
[331545856,1720477840730,-1095.63513171,0.00027397,2]
[331545857,1720477840739,-1095.63513171,0.00027397,2]
[331545858,1720477840749,-1095.63513171,0.00027397,2]
[331545859,1720477840759,-1095.63513171,0.00027397,2]
[331545861,1720477840769,-1220.63513173,0.00027397,2]
[331545863,1720477840783,-1220.63513173,0.00027397,2]
[331545865,1720477840793,-1220.63513173,0.00027397,2]
[331545867,1720477840803,-1720.63513172,0.00027397,2]
[331545869,1720477840812,-278.27514775,0.00027397,2]
[331545871,1720477840822,-500.0,0.00027397,2]
[331545873,1720477840832,-500.0,0.00027397,2]
[331545875,1720477840841,-165.2307468,0.00027397,120]
[331545877,1720477840850,-176.26175687,0.000274,2]
[331545879,1720477840859,-18940.1170328,0.00027989,3]
[331545881,1720477840868,-504.88735398,0.00028,2]
[331545883,1720477840878,-161.834866,0.00028339,2]
[331545885,1720477840887,-775.31299073,0.000289,2]
[331545887,1720477840896,-10583.55970307,0.00029879,2]
[331545888,1720477840905,-10583.55970307,0.00029879,2]
[331545890,1720477840914,-1042.49205362,0.00029904,2]
[331545892,1720477840923,-284.48602988,0.0003,3]
[331545895,1720477840934,-170.41373926,0.0003,4]
[331545896,1720477840943,-302.72681074,0.0003,30]
[331545898,1720477840953,-303.53424784,0.0003,2]
[331545900,1720477840962,-500.0,0.0003,120]
[331545907,1720477840972,-212.0,0.0003,2]
[331545909,1720477841034,-150.0,0.00030291,2]
[331545911,1720477841044,-1106.09923172,0.00030629,2]
[331545913,1720477841055,-150.0,0.00032877,2]
[331545916,1720477841065,-212.0,0.00033,2]
[331545918,1720477841074,-18940.1170328,0.00033214,4]
[331545920,1720477841084,-150.0,0.00033291,2]
[331545921,1720477841093,-750.0,0.00033295,2]
[331545923,1720477841103,-212.0,0.00033323,2]
[331545926,1720477841113,-575.23849751,0.00033323,4]
[331545927,1720477841122,-1025.97123647,0.00033323,4]
[331545930,1720477841136,-303.20074885,0.00033323,4]
[331545932,1720477841146,-6862.14140497,0.00033323,7]
[331545934,1720477841164,-1405.0,0.00033639,2]
[331545936,1720477841178,-500.0,0.00034,120]
[331545938,1720477841188,-37880.2340657,0.00034348,4]
[331545939,1720477841197,-5470.22506361,0.00034358,5]
[331545941,1720477841207,-88888.0,0.00034358,5]
[331545943,1720477841218,-268.723027,0.00034458,7]
[331545945,1720477841228,-268.723027,0.00034458,7]
[331545948,1720477841237,-596.662573,0.00034458,2]
[331545950,1720477841246,-596.662573,0.00034458,2]
[331545952,1720477841255,-1106.09923172,0.00034509,2]
[331545953,1720477841264,-151.0,0.00034553,7]
[331545955,1720477841274,-352.456612,0.00034553,7]
[331545957,1720477841283,-158.098734,0.00034553,7]
[331545959,1720477841292,-352.456612,0.00034553,7]
[331545962,1720477841302,-151.0,0.00034553,7]
[331545963,1720477841311,-151.0,0.00034553,7]
[331545965,1720477841320,-151.632729,0.00034553,7]
[331545967,1720477841329,-156.744755,0.00034553,7]
[331545969,1720477841339,-156.744755,0.00034553,7]
[331545971,1720477841348,-151.0,0.00034553,7]
[331545973,1720477841357,-151.0,0.00034553,7]
[331545975,1720477841366,-151.0,0.00034553,7]
[331545977,1720477841375,-151.0,0.00034553,7]
[331545979,1720477841384,-1736.827804,0.00034553,7]
[331545981,1720477841393,-1736.827804,0.00034553,7]
[331545983,1720477841402,-151.0,0.00034553,7]
[331545985,1720477841411,-151.0,0.00034553,7]